bitfinex-derivatives/quotes_BTCF0:USTF0_20250930
["timestamp","ask_amount","ask_price","bid_price","bid_amount"]
[1759271802590,4.41187554,113950.0,113940.0,0.02754449]
[1759271803687,4.41171554,113950.0,113940.0,0.02754449]
[1759271804698,1.80791554,113950.0,113940.0,0.02754449]
[1759271804894,4.41127554,113950.0,113940.0,0.02754449]
[1759271805193,4.08672739,113950.0,113940.0,0.02754449]
[1759271806393,4.41127554,113950.0,113940.0,0.02754449]
[1759271807597,4.08672739,113950.0,113940.0,0.02754449]
[1759271807996,4.08620739,113950.0,113940.0,0.02754449]
[1759271808891,1.48336739,113950.0,113940.0,0.02754449]
[1759271809303,4.08588739,113950.0,113940.0,0.02754449]
[1759271811700,4.08548739,113950.0,113940.0,0.02754449]
[1759271812199,4.08540739,113950.0,113940.0,0.02754449]
[1759271812798,4.08520739,113950.0,113940.0,0.02754449]
[1759271817101,4.08464739,113950.0,113940.0,0.02754449]
[1759271817305,3.68404739,113950.0,113940.0,0.04962449]
[1759271817608,1.08336739,113950.0,113940.0,0.04962449]
[1759271817805,1.90380739,113950.0,113940.0,0.04962449]
[1759271820906,1.90380739,113950.0,113940.0,0.02754449]
[1759271823511,1.90380739,113950.0,113940.0,0.04962449]
[1759271824407,1.90220739,113950.0,113940.0,0.04962449]
[1759271825311,1.08336739,113950.0,113940.0,0.04962449]
[1759271825509,1.90220739,113950.0,113940.0,0.04962449]
[1759271826611,1.90192739,113950.0,113940.0,0.04962449]
[1759271827513,1.08336739,113950.0,113940.0,0.04962449]
[1759271828018,1.90144739,113950.0,113940.0,0.04962449]
[1759271829718,1.08336739,113950.0,113940.0,0.04962449]
[1759271829918,1.90140739,113950.0,113940.0,0.04962449]
[1759271830217,1.57684344,113950.0,113940.0,0.04962449]
[1759271832117,1.57620344,113950.0,113940.0,0.04962449]
[1759271834825,0.75880344,113950.0,113940.0,0.04962449]
[1759271835016,1.57548344,113950.0,113940.0,0.04962449]
[1759271836328,0.75880344,113950.0,113940.0,0.04962449]
[1759271836621,0.39800344,113950.0,113940.0,0.53736749]
[1759271836918,1.21416344,113950.0,113940.0,0.53736749]
[1759271837524,0.39800344,113950.0,113940.0,0.53736749]
[1759271837724,1.21416344,113950.0,113940.0,0.53736749]
[1759271839518,1.21404344,113950.0,113940.0,0.53736749]
[1759271840020,0.39800344,113950.0,113940.0,0.53736749]
[1759271840214,1.21360344,113950.0,113940.0,0.53736749]
[1759271841723,0.07347109,113950.0,113940.0,0.89816749]
[1759271841923,0.39800344,113950.0,113940.0,0.89816749]
[1759271842121,1.21360344,113950.0,113940.0,0.89816749]
[1759271842818,0.07347109,113950.0,113940.0,1.30130384]
[1759271843025,0.88907109,113950.0,113940.0,1.30130384]
[1759271843326,0.087727,113960.0,113950.0,0.0877339]
[1759271843525,0.087727,113960.0,113950.0,0.18686243]
[1759271843526,0.903327,113960.0,113950.0,0.18686243]
[1759271843726,0.903327,113960.0,113950.0,0.54766243]
[1759271843928,1.22785935,113960.0,113950.0,0.54766243]
[1759271845428,0.41225935,113960.0,113950.0,0.54766243]
[1759271845628,1.22781935,113960.0,113950.0,0.54766243]
[1759271847126,0.903287,113960.0,113950.0,0.54766243]
[1759271847328,1.22781935,113960.0,113950.0,0.4845239]
[1759271847825,0.903247,113960.0,113950.0,0.8845239]
[1759271848025,0.903247,113960.0,113950.0,0.94763557]
[1759271849431,0.903247,113960.0,113950.0,0.95656098]
[1759271849922,0.903207,113960.0,113950.0,0.95656098]
[1759271852730,0.087727,113960.0,113950.0,0.95656098]
[1759271852930,0.903167,113960.0,113950.0,0.95656098]
[1759271853732,0.41225645,113970.0,113960.0,0.123716]
[1759271854031,0.9031241,113970.0,113960.0,0.484516]
[1759271854233,1.22765645,113970.0,113960.0,0.884516]
[1759271854425,0.41225645,113970.0,113960.0,0.884516]
[1759271854735,1.22765645,113970.0,113960.0,0.884516]
[1759271854928,0.41225645,113970.0,113960.0,0.884516]
[1759271855129,0.41224575,113980.0,113970.0,0.1237085]
[1759271855330,0.9031134,113980.0,113970.0,0.1237085]
[1759271855734,1.22764575,113980.0,113970.0,0.1237085]
[1759271856035,1.22764575,113980.0,113970.0,0.4845085]
[1759271857833,0.9030334,113980.0,113970.0,0.4845085]
[1759271858033,1.22756575,113980.0,113970.0,0.4845085]
[1759271858331,0.41224325,113990.0,113980.0,0.1237017]
[1759271858530,0.41224325,113990.0,113980.0,0.4845017]
[1759271858832,1.22756325,113990.0,113980.0,0.4845017]
[1759271864141,1.22756325,113990.0,113980.0,0.39679]
[1759271864339,1.58836325,113990.0,113980.0,0.03599]
[1759271865936,1.58836325,113990.0,113980.0,0.1237019]
[1759271866137,1.22756325,113990.0,113980.0,0.1237019]
[1759271866444,0.9030309,113990.0,113980.0,0.1237019]
[1759271866635,1.22756325,113990.0,113980.0,0.1237019]
[1759271867440,1.22756325,113990.0,113980.0,0.03599]
[1759271868044,1.58836325,113990.0,113980.0,0.03599]
[1759271871537,1.22756325,113990.0,113980.0,0.03599]
[1759271874044,0.9030309,113990.0,113980.0,0.03599]
[1759271874246,1.22756325,113990.0,113980.0,0.03599]
[1759271877248,1.24909354,113990.0,113980.0,0.03599]
[1759271878943,2.33442589,113990.0,113980.0,0.01343]
[1759271879148,0.0877119,113980.0,113970.0,0.01423]
[1759271879348,1.0975766,113980.0,113970.0,0.01423]
[1759271879548,1.0975766,113980.0,113970.0,0.01343]
[1759271879749,1.0975766,113980.0,113970.0,0.01383]
[1759271880253,1.58800425,113980.0,113970.0,0.01383]
[1759271880654,0.0877273,113960.0,113950.0,0.0893322]
[1759271880851,1.22721965,113960.0,113950.0,0.1242322]
[1759271881054,1.58801965,113960.0,113950.0,0.1242322]
[1759271882960,1.58801965,113960.0,113950.0,0.1465456]
[1759271884156,1.2634873,113960.0,113950.0,0.11540014]
[1759271884361,1.58801965,113960.0,113950.0,0.11540014]
[1759271884761,1.58797965,113960.0,113950.0,0.11540014]
[1759271885056,1.58797965,113960.0,113950.0,0.0365]
[1759271887065,1.58797965,113960.0,113950.0,0.11540913]
[1759271888168,1.59686535,113960.0,113950.0,0.11540913]
[1759271888767,0.77305965,113960.0,113950.0,0.11540913]
[1759271888968,1.58793965,113960.0,113950.0,0.11540913]
[1759271890269,1.91227734,113960.0,113950.0,0.11540913]
[1759271890872,1.09739734,113960.0,113950.0,0.11540913]
[1759271891172,1.92097351,113960.0,113950.0,0.11540913]
[1759271892572,1.10605351,113960.0,113950.0,0.11540913]
[1759271892773,1.92093351,113960.0,113950.0,0.11540913]
[1759271896464,2.32093351,113960.0,113950.0,0.09344913]
[1759271896670,2.30667085,113960.0,113950.0,0.09184913]
[1759271896871,2.30667085,113960.0,113950.0,0.09224913]
[1759271897473,2.30655085,113960.0,113950.0,0.09224913]
[1759271898678,2.63098587,113960.0,113950.0,0.09224913]
[1759271899065,2.63098587,113960.0,113950.0,0.01294]
[1759271899270,2.63098587,113960.0,113950.0,0.01334]
[1759271899578,2.63098587,113960.0,113950.0,0.0004]
[1759271900467,1.81622587,113960.0,113950.0,0.0004]
[1759271900668,1.81622587,113960.0,113950.0,0.07930913]
[1759271900872,2.63098587,113960.0,113950.0,0.07930913]
[1759271902980,2.63098587,113960.0,113950.0,0.0004]
[1759271904187,2.63098587,113960.0,113950.0,0.01318]
[1759271904685,2.63098587,113960.0,113950.0,0.07630061]
[1759271905972,1.81622587,113960.0,113950.0,0.07630061]
[1759271906172,2.63090587,113960.0,113950.0,0.07630061]
[1759271907084,1.81622587,113960.0,113950.0,0.07630061]
[1759271907287,2.63086587,113960.0,113950.0,0.07630061]
[1759271909086,1.81622587,113960.0,113950.0,0.07630061]
[1759271909385,1.49179085,113960.0,113950.0,0.09761061]
[1759271909687,1.90643085,113960.0,113950.0,0.09761061]
[1759271910679,1.90643085,113960.0,113950.0,0.07630061]
[1759271910680,2.23086587,113960.0,113950.0,0.07630061]
[1759271911588,2.23086587,113960.0,113950.0,0.07590061]
[1759271911788,2.23086587,113960.0,113950.0,0.07630061]
[1759271912485,2.63086587,113960.0,113950.0,0.07630061]
[1759271913189,2.63086587,113960.0,113950.0,0.07590061]
[1759271913390,2.63086587,113960.0,113950.0,0.07630061]
[1759271916089,2.83756587,113960.0,113950.0,0.07630061]
[1759271917496,2.02292587,113960.0,113950.0,0.07630061]
[1759271917689,2.83744587,113960.0,113950.0,0.07630061]
[1759271918496,2.02292587,113960.0,113950.0,0.07630061]
[1759271918886,2.83740587,113960.0,113950.0,0.07630061]
[1759271919491,1.62292587,113960.0,113950.0,0.07630061]
[1759271919692,2.43740587,113960.0,113950.0,0.07630061]
[1759271920194,1.62292587,113960.0,113950.0,0.07630061]
[1759271920396,2.43736587,113960.0,113950.0,0.07630061]
[1759271921194,2.43736587,113960.0,113950.0,0.09761061]
[1759271921499,2.79816587,113960.0,113950.0,0.07630061]
[1759271922994,1.01042081,113960.0,113950.0,0.07630061]
[1759271923196,1.82482081,113960.0,113950.0,0.07630061]
[1759271923495,2.79812587,113960.0,113950.0,0.07630061]
[1759271924297,1.98372587,113960.0,113950.0,0.07630061]
[1759271924496,2.79812587,113960.0,113950.0,0.07630061]
[1759271926300,1.98372587,113960.0,113950.0,0.07630061]
[1759271926492,2.79808587,113960.0,113950.0,0.07630061]
[1759271929189,2.79808587,113960.0,113950.0,0.01318]
[1759271929803,1.82470081,113960.0,113950.0,0.01318]
[1759271929991,2.79800587,113960.0,113950.0,0.01318]
[1759271933298,1.98372587,113960.0,113950.0,0.01318]
[1759271933499,2.79792587,113960.0,113950.0,0.03486]
[1759271934000,2.79792587,113960.0,113950.0,0.01318]
[1759271934297,2.79792587,113960.0,113950.0,0.03486]
[1759271936509,2.79792587,113960.0,113950.0,0.01318]
[1759271937303,2.79792587,113960.0,113950.0,0.03486]
[1759271938104,1.65063468,113960.0,113950.0,0.43486]
[1759271938306,1.82465712,113960.0,113950.0,0.43486]
[1759271938504,2.47352716,113960.0,113950.0,0.49798061]
[1759271939208,2.79796218,113960.0,113950.0,0.07630061]
[1759271939409,2.79796218,113960.0,113950.0,0.01318]
[1759271940709,2.79796218,113960.0,113950.0,0.07630061]
[1759271941108,2.79796218,113960.0,113950.0,0.01318]
[1759271941605,0.07347181,113950.0,113940.0,0.10617362]
[1759271941813,1.08314185,113950.0,113940.0,0.10697362]
[1759271942311,1.08314185,113950.0,113940.0,0.12865362]
[1759271945616,1.08314185,113950.0,113940.0,0.11292592]
[1759271948417,1.08314185,113950.0,113940.0,0.09124592]
[1759271948621,1.08314185,113950.0,113940.0,0.11292592]
[1759271949210,1.08314185,113950.0,113940.0,0.09124592]
[1759271952222,0.75882158,113950.0,113940.0,0.09124592]
[1759271952618,1.06910639,113950.0,113940.0,0.09124592]
[1759271952819,1.06910639,113950.0,113940.0,0.09044592]
[1759271953027,1.06910639,113950.0,113940.0,0.09084592]
[1759271953617,1.06910639,113950.0,113940.0,0.02766449]
[1759271955227,1.88290639,113950.0,113940.0,0.02766449]
[1759271956121,1.88290639,113950.0,113940.0,0.01472449]
[1759271956628,1.06910639,113950.0,113940.0,0.02868449]
[1759271956828,1.88290639,113950.0,113940.0,0.02868449]
[1759271957326,1.88290639,113950.0,113940.0,0.01472449]
[1759271957623,1.46910639,113950.0,113940.0,0.01432449]
[1759271957925,4.06298639,113950.0,113940.0,0.01472449]
[1759271960432,4.06294639,113950.0,113940.0,0.01472449]
[1759271962233,4.06298639,113950.0,113940.0,0.01472449]
[1759271962733,1.46910639,113950.0,113940.0,0.01472449]
[1759271962933,4.06294639,113950.0,113940.0,0.01472449]
[1759271963129,1.46910639,113950.0,113940.0,0.01472449]
[1759271963333,4.06294639,113950.0,113940.0,0.01472449]
[1759271963633,1.67580639,113950.0,113940.0,4.49e-06]
[1759271963830,4.26964639,113950.0,113940.0,4.49e-06]
[1759271964327,1.67580639,113950.0,113940.0,4.49e-06]
[1759271964635,4.26960639,113950.0,113940.0,4.49e-06]
[1759271967632,4.26964639,113950.0,113940.0,4.49e-06]
[1759271967837,4.26960639,113950.0,113940.0,0.01261449]
[1759271968032,4.26960639,113950.0,113940.0,0.03571449]
[1759271968338,4.26960639,113950.0,113940.0,0.01261449]
[1759271969535,1.67580639,113950.0,113940.0,0.01261449]
[1759271969839,4.26960639,113950.0,113940.0,0.01261449]
[1759271970136,1.67580639,113950.0,113940.0,0.01261449]
[1759271970338,4.26956639,113950.0,113940.0,0.01261449]
[1759271970934,1.67580639,113950.0,113940.0,0.01261449]
[1759271971136,4.26956639,113950.0,113940.0,0.01261449]
[1759271973435,1.67580639,113950.0,113940.0,0.01261449]
[1759271973639,4.26952639,113950.0,113940.0,0.01261449]
[1759271979545,3.86952639,113950.0,113940.0,0.01261449]
[1759271980145,3.86952639,113950.0,113940.0,4.49e-06]
[1759271983042,3.86952639,113950.0,113940.0,0.01261449]
[1759271988643,3.86936639,113950.0,113940.0,0.01261449]
[1759271988848,3.86932639,113950.0,113940.0,0.01261449]
[1759271990053,3.86932639,113950.0,113940.0,0.03579449]
[1759271990552,2.40694685,113950.0,113940.0,0.03579449]
[1759271990758,3.86928639,113950.0,113940.0,0.01261449]
[1759271991250,1.27580639,113950.0,113940.0,0.01261449]
[1759271991446,3.86928639,113950.0,113940.0,0.01261449]
[1759271992466,1.27580639,113950.0,113940.0,0.01261449]
[1759271992758,3.86924639,113950.0,113940.0,0.01261449]
[1759271994257,3.86924639,113950.0,113940.0,0.03579449]
[1759271994468,3.86924639,113950.0,113940.0,0.09897592]
[1759271994661,3.86924639,113950.0,113940.0,0.07579592]
[1759271996766,3.86924639,113950.0,113940.0,0.01261449]
[1759271996965,1.63660639,113950.0,113940.0,0.01261449]
[1759271997166,4.23000639,113950.0,113940.0,0.01261449]
[1759272000061,4.23000639,113950.0,113940.0,0.03579449]
[1759272000867,4.23000639,113950.0,113940.0,0.01261449]
[1759272001460,1.31205662,113950.0,113940.0,0.43579449]
[1759272001667,1.31205662,113950.0,113940.0,0.49897592]
[1759272001668,2.12505662,113950.0,113940.0,0.49897592]
[1759272002669,0.78080685,113950.0,113940.0,0.49897592]
[1759272002968,1.91835662,113950.0,113940.0,0.49897592]
[1759272005067,1.10535662,113950.0,113940.0,0.49897592]
[1759272005268,1.10535662,113950.0,113940.0,0.58671892]
[1759272005469,1.91827662,113950.0,113940.0,0.52353749]
[1759272006373,1.10535662,113950.0,113940.0,0.52353749]
[1759272006563,1.91827662,113950.0,113940.0,0.52353749]
[1759272006867,1.91827662,113950.0,113940.0,0.49894097]
[1759272007561,1.91827662,113950.0,113940.0,0.43579449]
[1759272008164,2.24282639,113950.0,113940.0,0.01261449]
[1759272008573,2.24282639,113950.0,113940.0,0.07576097]
[1759272008768,2.24282639,113950.0,113940.0,0.07616097]
[1759272010166,2.24282639,113950.0,113940.0,0.07576097]
[1759272010364,2.24282639,113950.0,113940.0,0.01301449]
[1759272011874,2.24282639,113950.0,113940.0,0.00040449]
[1759272014071,2.44952639,113950.0,113940.0,0.00040449]
[1759272014272,2.77433008,113950.0,113940.0,0.00040449]
[1759272015473,2.59005591,113950.0,113930.0,0.01341]
[1759272015669,0.77317741,113940.0,113930.0,0.07575648]
[1759272015868,1.40817997,113940.0,113930.0,0.07615648]
[1759272016466,0.43427674,113940.0,113930.0,0.06354648]
[1759272016675,1.40817997,113940.0,113930.0,0.07692648]
[1759272016869,1.40817997,113940.0,113930.0,0.06354648]
[1759272017070,1.40817997,113940.0,113930.0,0.01392]
[1759272017270,0.43427674,113940.0,113930.0,0.07706648]
[1759272017471,1.40817997,113940.0,113930.0,0.07706648]
[1759272017768,4.00105997,113940.0,113930.0,0.07706648]
[1759272018169,3.02715674,113940.0,113930.0,0.07706648]
[1759272018475,0.43427674,113940.0,113930.0,0.07706648]
[1759272018674,4.00105997,113940.0,113930.0,0.07706648]
[1759272019270,1.08354556,113940.0,113930.0,0.09840648]
[1759272019573,2.22085997,113940.0,113930.0,0.09840648]
[1759272021976,2.22085997,113940.0,113930.0,0.07706648]
[1759272022788,2.22085997,113940.0,113930.0,0.09975648]
[1759272023479,2.22085997,113940.0,113930.0,0.07706648]
[1759272024980,1.40817997,113940.0,113930.0,0.07706648]
[1759272025180,2.22085997,113940.0,113930.0,0.09975648]
[1759272026879,1.08354556,113940.0,113930.0,0.09975648]
[1759272027080,1.89622556,113940.0,113930.0,0.09975648]
[1759272027678,1.01006882,113940.0,113930.0,0.58750688]
[1759272027875,1.82274882,113940.0,113930.0,0.58750688]
[1759272029081,1.91049152,113940.0,113930.0,0.58750688]
[1759272029485,1.09781152,113940.0,113930.0,0.58750688]
[1759272029685,1.91045152,113940.0,113930.0,0.58750688]
[1759272033491,1.09781152,113940.0,113930.0,0.58750688]
[1759272033688,1.91045152,113940.0,113930.0,0.58750688]
[1759272036184,1.2611427,113940.0,113930.0,0.58750688]
[1759272036389,1.2611427,113940.0,113930.0,0.91215146]
[1759272036390,1.49803441,113940.0,113930.0,0.91215146]
[1759272036595,1.49803441,113940.0,113930.0,0.92790394]
[1759272036793,0.32463441,113940.0,113930.0,0.60326953]
[1759272037085,1.13723441,113940.0,113930.0,0.92790394]
[1759272038191,0.8126,113940.0,113930.0,0.92790394]
[1759272038493,1.13723441,113940.0,113930.0,0.92790394]
[1759272039396,1.13723441,113940.0,113930.0,0.52790394]
[1759272041993,1.22497711,113940.0,113930.0,0.20326953]
[1759272042193,1.91041152,113940.0,113930.0,0.1786533]
[1759272042391,1.91041152,113940.0,113930.0,0.18749457]
[1759272042587,1.91041152,113940.0,113930.0,0.09974417]
[1759272042793,1.91041152,113940.0,113930.0,0.01392]
[1759272043099,2.63504593,113940.0,113930.0,0.07665417]
[1759272043295,2.63504593,113940.0,113930.0,0.07705417]
[1759272043494,2.31041152,113940.0,113930.0,0.07705417]
[1759272043695,2.63504593,113940.0,113930.0,0.07705417]
[1759272043997,2.31041152,113940.0,113930.0,0.07705417]
[1759272045998,2.63504593,113940.0,113930.0,0.07705417]
[1759272046199,2.63504593,113940.0,113930.0,0.01392]
[1759272047990,2.63504593,113940.0,113930.0,0.07705417]
[1759272050104,2.63504593,113940.0,113930.0,0.07665417]
[1759272050305,2.63504593,113940.0,113930.0,0.07705417]
[1759272050702,2.63504593,113940.0,113930.0,0.01392]
[1759272051805,1.82244593,113940.0,113930.0,0.01392]
[1759272052001,4.41516593,113940.0,113930.0,0.01392]
[1759272052706,1.82244593,113940.0,113930.0,0.01392]
[1759272052909,4.41516593,113940.0,113930.0,0.02642]
[1759272054805,1.82244593,113940.0,113930.0,0.02642]
[1759272055005,4.41520593,113940.0,113930.0,0.02642]
[1759272055907,1.82244593,113940.0,113930.0,0.04971]
[1759272056300,2.63496593,113940.0,113930.0,0.04971]
[1759272057306,1.82244593,113940.0,113930.0,0.04971]
[1759272057504,2.63496593,113940.0,113930.0,0.04971]
[1759272060008,1.82244593,113940.0,113930.0,0.04971]
[1759272060208,2.63496593,113940.0,113930.0,0.04971]
[1759272061809,1.82244593,113940.0,113930.0,0.04971]
[1759272062010,2.63496593,113940.0,113930.0,0.04971]
[1759272062710,2.99576593,113940.0,113930.0,0.04971]
[1759272063808,2.99576593,113940.0,113930.0,0.02642]
[1759272064014,2.99576593,113940.0,113930.0,0.08955417]
[1759272074219,2.67116698,113940.0,113930.0,0.08955417]
[1759272078031,2.0218627,113940.0,113930.0,0.08955417]
[1759272078331,2.67116698,113940.0,113930.0,0.08955417]
[1759272080229,2.67116698,113940.0,113930.0,0.11161417]
[1759272080733,2.67116698,113940.0,113930.0,0.08955417]
[1759272082529,2.67116698,113940.0,113930.0,0.07603417]
[1759272083036,2.67116698,113940.0,113930.0,0.08979417]
[1759272084634,1.85864698,113940.0,113930.0,0.08979417]
[1759272084834,4.45144698,113940.0,113930.0,0.08979417]
[1759272085733,1.85864698,113940.0,113930.0,0.11185417]
[1759272086036,4.45144698,113940.0,113930.0,0.11185417]
[1759272086227,4.45144698,113940.0,113930.0,0.04872]
[1759272086942,4.45144698,113940.0,113930.0,0.06122]
[1759272091333,4.45144698,113940.0,113930.0,0.04872]
[1759272091533,4.45144698,113940.0,113930.0,0.02666]
[1759272094732,1.85864698,113940.0,113930.0,0.02666]
[1759272094934,4.45140698,113940.0,113930.0,0.04872]
[1759272095640,1.85864698,113940.0,113930.0,0.04872]
[1759272095939,4.45140698,113940.0,113930.0,0.04872]
[1759272097944,1.85864698,113940.0,113930.0,0.04872]
[1759272098146,4.45140698,113940.0,113930.0,0.02666]
[1759272098943,4.45140698,113940.0,113930.0,0.04872]
[1759272099239,4.45136698,113940.0,113930.0,0.04872]
[1759272099446,4.05136698,113940.0,113930.0,0.04872]
[1759272102548,4.05136698,113940.0,113930.0,0.02666]
[1759272104048,4.05136698,113940.0,113930.0,0.04872]
[1759272105349,1.45864698,113940.0,113930.0,0.04872]
[1759272105850,2.27100698,113940.0,113930.0,0.04872]
[1759272112849,1.45864698,113940.0,113930.0,0.04872]
[1759272113051,1.94627484,113940.0,113930.0,0.44872]
[1759272113253,1.94627484,113940.0,113930.0,0.52762913]
[1759272113455,2.27092698,113940.0,113930.0,0.52762913]
[1759272114851,2.27092698,113940.0,113930.0,0.44872]
[1759272116555,2.27092698,113940.0,113930.0,0.52762913]
[1759272116755,2.27092698,113940.0,113930.0,0.44872]
[1759272117756,1.94623484,113940.0,113930.0,0.5364704]
[1759272118159,1.13399484,113940.0,113930.0,0.61537953]
[1759272118360,1.94623484,113940.0,113930.0,0.61537953]
[1759272120167,1.94619484,113940.0,113930.0,0.5364704]
[1759272120559,1.94619484,113940.0,113930.0,0.61537953]
[1759272122970,1.13399484,113940.0,113930.0,0.61537953]
[1759272123164,1.94619484,113940.0,113930.0,0.61537953]
[1759272124373,1.6215427,113940.0,113930.0,0.61537953]
[1759272124574,1.94619484,113940.0,113930.0,0.61537953]
[1759272125475,1.6215427,113940.0,113930.0,0.61537953]
[1759272125667,1.94619484,113940.0,113930.0,0.61537953]
[1759272126371,1.13399484,113940.0,113930.0,0.61537953]
[1759272126573,0.8093427,113940.0,113930.0,0.94003167]
[1759272126777,1.6214627,113940.0,113930.0,0.61537953]
[1759272127278,0.8093427,113940.0,113930.0,0.61537953]
[1759272127479,0.4485402,113950.0,113940.0,0.1237927]
[1759272127679,1.2606602,113950.0,113940.0,0.1237927]
[1759272128680,0.77319234,113950.0,113940.0,0.1237927]
[1759272128982,1.2606202,113950.0,113940.0,0.5237927]
[1759272130875,1.2606202,113950.0,113940.0,0.53262215]
[1759272132187,1.2606202,113950.0,113940.0,0.61153128]
[1759272132684,0.4485402,113950.0,113940.0,0.61153128]
[1759272132880,0.8997802,113950.0,113940.0,0.61153128]
[1759272135982,1.22443234,113950.0,113940.0,0.60270183]
[1759272136284,1.22422467,113950.0,113940.0,0.60270183]
[1759272138592,1.58502467,113950.0,113940.0,0.5237924]
[1759272140298,1.58502467,113950.0,113940.0,0.5362924]
[1759272142596,1.58502467,113950.0,113940.0,0.61520153]
[1759272148394,1.58502467,113950.0,113940.0,0.5362924]
[1759272149497,1.2605802,113950.0,113940.0,0.5362924]
[1759272149701,1.58502467,113950.0,113940.0,0.5362924]
[1759272155700,1.90946914,113950.0,113940.0,0.5130024]
[1759272155901,1.90946914,113950.0,113940.0,0.04774]
[1759272156403,1.90946914,113950.0,113940.0,0.04814]
[1759272157899,0.4485402,113950.0,113940.0,0.04814]
[1759272158105,1.2603802,113950.0,113940.0,0.04814]
[1759272158306,1.58482467,113950.0,113940.0,0.1358824]
[1759272158906,0.77298467,113950.0,113940.0,0.1358824]
[1759272159309,1.58482467,113950.0,113940.0,0.1358824]
[1759272159508,0.77298467,113950.0,113940.0,0.21479153]
[1759272159708,1.58478467,113950.0,113940.0,0.1358824]
[1759272160007,1.58478467,113950.0,113940.0,0.04814]
[1759272160702,0.77298467,113950.0,113940.0,0.21479183]
[1759272161007,1.58478467,113950.0,113940.0,0.46032687]
[1759272161208,1.58478467,113950.0,113940.0,0.539236]
[1759272162508,1.58478467,113950.0,113940.0,0.21479153]
[1759272162709,1.58478467,113950.0,113940.0,0.539236]
[1759272164311,1.2603402,113950.0,113940.0,0.539236]
[1759272164515,1.58478467,113950.0,113940.0,0.539236]
[1759272164812,1.58478467,113950.0,113940.0,0.12704913]
[1759272165512,1.58478467,113950.0,113940.0,0.21479183]
[1759272166313,1.2603402,113950.0,113940.0,0.21479183]
[1759272166506,1.58478467,113950.0,113940.0,0.21479183]
[1759272169404,1.58478467,113950.0,113940.0,0.1358827]
[1759272170715,1.58478467,113950.0,113940.0,0.21479183]
[1759272172916,1.58478467,113950.0,113940.0,0.1358827]
[1759272173316,1.58478467,113950.0,113940.0,0.21479183]
[1759272173517,1.58478467,113950.0,113940.0,0.1358827]
[1759272175019,0.77298467,113950.0,113940.0,0.1358827]
[1759272175219,1.58470467,113950.0,113940.0,0.1358827]
[1759272179522,0.4485402,113950.0,113940.0,0.1358827]
[1759272179724,1.58466467,113950.0,113940.0,0.46032717]
[1759272180016,0.77298467,113950.0,113940.0,0.46032717]
[1759272180222,1.58466467,113950.0,113940.0,0.46032717]
[1759272180822,1.2602202,113950.0,113940.0,0.46032717]
[1759272181023,1.58466467,113950.0,113940.0,0.46032717]
[1759272181821,1.58466467,113950.0,113940.0,0.5392363]
[1759272182519,0.77298467,113950.0,113940.0,0.5392363]
[1759272182724,1.58462467,113950.0,113940.0,0.5392363]
[1759272185427,0.77298467,113950.0,113940.0,0.5392363]
[1759272185628,1.58462467,113950.0,113940.0,0.5392363]
[1759272186327,1.58462467,113950.0,113940.0,0.46032717]
[1759272189130,1.58462467,113950.0,113940.0,0.53930523]
[1759272191233,0.77298467,113950.0,113940.0,0.53930523]
[1759272191432,1.58458467,113950.0,113940.0,0.53930523]
[1759272191834,0.77298467,113950.0,113940.0,0.53930523]
[1759272192029,1.58454467,113950.0,113940.0,0.53930523]
[1759272192634,1.58454467,113950.0,113940.0,0.21486076]
[1759272192836,0.77298467,113950.0,113940.0,0.21486076]
[1759272193037,1.58450467,113950.0,113940.0,0.21486076]
[1759272193635,1.58450467,113950.0,113940.0,0.1358827]
[1759272193933,1.58450467,113950.0,113940.0,0.46032717]
[1759272194328,1.2600602,113950.0,113940.0,0.46032717]
[1759272194530,1.58450467,113950.0,113940.0,0.46032717]
[1759272195641,1.58450467,113950.0,113940.0,0.1358827]
[1759272196241,1.58451025,113950.0,113940.0,0.1358827]
[1759272197440,1.58451025,113950.0,113940.0,0.21487394]
[1759272198737,1.2600602,113950.0,113940.0,0.21487394]
[1759272198935,1.58451025,113950.0,113940.0,0.21487394]
[1759272199337,1.58451025,113950.0,113940.0,0.1358827]
[1759272199843,1.2600602,113950.0,113940.0,0.1358827]
[1759272200442,1.2600602,113950.0,113940.0,0.2459283]
[1759272201442,1.2600602,113950.0,113940.0,0.1581856]
[1759272201649,1.58451025,113950.0,113940.0,0.1581856]
[1759272202139,1.2600602,113950.0,113940.0,0.1581856]
[1759272202339,1.58451025,113950.0,113940.0,0.1581856]
[1759272204138,1.2600602,113950.0,113940.0,0.1581856]
[1759272204341,1.58451025,113950.0,113940.0,0.1581856]
[1759272204841,1.2600602,113950.0,113940.0,0.1581856]
[1759272205048,1.58451025,113950.0,113940.0,0.1581856]
[1759272205445,1.58451025,113950.0,113940.0,0.2371392]
[1759272205648,1.58451025,113950.0,113940.0,0.1270936]
[1759272214555,1.58451025,113950.0,113940.0,0.02566]
[1759272214849,1.58415025,113950.0,113940.0,0.02566]
[1759272215544,1.58415025,113950.0,113940.0,0.04884]
[1759272219355,2.3086003,113950.0,113940.0,1e-07]
[1759272219554,0.0877427,113940.0,113930.0,0.01376]
[1759272219753,0.77299275,113940.0,113930.0,0.01376]
[1759272219960,1.58407275,113940.0,113930.0,0.03774]
[1759272220258,0.77299275,113940.0,113930.0,0.1166936]
[1759272220454,0.4485427,113940.0,113930.0,0.1166936]
[1759272220758,1.58407275,113940.0,113930.0,0.12540914]
[1759272221559,0.77299275,113940.0,113930.0,0.12540914]
[1759272221761,1.58407275,113940.0,113930.0,0.12540914]
[1759272222762,0.77299275,113940.0,113930.0,0.12540914]
[1759272222953,1.58407275,113940.0,113930.0,0.12540914]
[1759272223354,1.98407275,113940.0,113930.0,0.0935136]
[1759272223954,2.3085228,113940.0,113930.0,0.0935136]
[1759272224358,2.3085228,113940.0,113930.0,0.01456]
[1759272224550,1.98407275,113940.0,113930.0,0.01456]
[1759272224754,1.6596227,113940.0,113930.0,0.03774]
[1759272224955,1.98407275,113940.0,113930.0,0.03774]
[1759272229066,1.98407275,113940.0,113930.0,0.01456]
[1759272230365,1.98399275,113940.0,113930.0,0.03614]
[1759272231572,1.17299275,113940.0,113930.0,0.03614]
[1759272231766,1.98399275,113940.0,113930.0,0.03614]
[1759272232465,0.8485427,113940.0,113930.0,0.03614]
[1759272232666,1.98395275,113940.0,113930.0,0.03614]
[1759272234871,1.98399275,113940.0,113930.0,0.03614]
[1759272237875,2.34479275,113940.0,113930.0,0.03614]
[1759272238374,1.53379275,113940.0,113930.0,0.03614]
[1759272238575,2.34471275,113940.0,113930.0,0.03614]
[1759272240074,2.34471275,113940.0,113930.0,0.1150936]
[1759272240377,1.2093427,113940.0,113930.0,0.202844]
[1759272240671,2.34467275,113940.0,113930.0,0.202844]
[1759272241479,1.2093427,113940.0,113930.0,0.202844]
[1759272241671,0.4485427,113940.0,113930.0,0.52729405]
[1759272241876,1.2593827,113940.0,113930.0,0.55838605]
[1759272242779,1.2593827,113940.0,113930.0,0.233936]
[1759272243375,1.58383275,113940.0,113930.0,0.1461856]
[1759272244086,1.58383275,113940.0,113930.0,0.2250615]
[1759272244280,1.58383275,113940.0,113930.0,0.2027663]